[Event "Superbet Rapid Poland 2022"]
[Site "Warsaw"]
[Date "2022.05.21"]
[Round "7.2"]
[White "Duda, Jan-Krzysztof"]
[Black "Shevchenko, Kirill"]
[Result "1/2-1/2"]
[ECO "D15"]
[WhiteElo "2750"]
[BlackElo "2644"]
[Annotator "TA"]
[PlyCount "253"]
[EventDate "2022.05.19"]
[EventType "tourn"]
[EventCountry "POL"]
[SourceTitle "playchess.com"]
[Source "ChessBase"]
[SourceQuality "1"]
[TimeControl "1500+10"]

{[%evp 80,253,8,8,8,8,8,8,8,8,8,8,8,8,8,8,8,8,8,8,8,8,8,8,8,8,8,8,8,8,8,8,8,8,8,8,8,8,8,8,20,8,8,8,8,8,8,8,8,8,8,8,8,8,8,8,8,8,8,8,8,8,8,0,8,0,8,8,8,8,8,0,8,8,8,8,8,8,8,8,8,8,8,8,8,8,8,8,8,8,8,8,8,8,8,8,8,8,8,8,8,8,69,8,8,8,8,8,8,0,8,8,8,0,0,0,0,0,0,0,0,0,0,0,0,0,0,0,8,0,8,0,8,0,0,0,0,0,0,0,0,0,0,0,0,0,0,0,0,0,0,0,0,0,0,0,0,0,0,0,0,0,0,0,0,0,0,0,0,0,0,0,0,0,0,0]} 1. d4 {[%emt 0:00:02]} Nf6 {[%emt 0:00:04]} 2. c4 {[%emt 0:00:03]} c6 {[%emt 0:00:02]} 3. Nf3 {[%emt 0:01:34]} d5 {[%emt 0:00:02]} 4. e3 {[%emt 0:00:02]} Bf5 {[%emt 0:00:15]} 5. Nc3 {[%emt 0:00:28]} a6 {[%emt 0:00:17]} 6. Ne5 {[%emt 0:04:10]} Nbd7 {[%emt 0:00:22]} 7. Qb3 {[%emt 0:00:03]} Qc7 {[%emt 0:00:44]} 8. cxd5 {[%emt 0:00:40]} Nxe5 {[%emt 0:00:06]} 9. dxe5 {[%emt 0:00:02]} Nxd5 {[%emt 0:00:02]} 10. Nxd5 {[%emt 0:02:00]} cxd5 {[%emt 0:00:02]} 11. Bd2 {[%emt 0:00:01]} Qxe5 {[%emt 0:00:45]} 12. Qxb7 {[%emt 0:05:30]} Rb8 {[%emt 0:00:28]} 13. Qxa6 {[%emt 0:00:02]} Qxb2 {[%emt 0:01:06]} 14. Rc1 {[%emt 0:01:46]} Bd7 {[%emt 0:03:38]} 15. Bd3 {[%emt 0:01:52]} e6 {[%emt 0:02:45]} 16. Ke2 {[%emt 0:00:26]} Bb4 {[%emt 0:04:26]} 17. Rc2 {[%emt 0:00:29]} Qe5 {[%emt 0:00:42]} 18. Bxb4 {[%emt 0:01:30]} Rxb4 {[%emt 0:00:02]} 19. Qa3 {[%emt 0:00:49]} Qb8 {[%emt 0:00:43]} 20. Qc3 {[%emt 0:04:05]} O-O {[%emt 0:01:10]} 21. Qc7 {[%emt 0:00:02]} Ba4 {[%emt 0:02:01]} 22. Qxb8 {[%emt 0:00:04]} Rfxb8 {[%emt 0:00:02]} 23. Rd2 {[%emt 0:00:02]} Rb2 {[%emt 0:02:02]} 24. Rc1 {[%emt 0:00:53]} Rxd2+ {[%emt 0:00:28]} 25. Kxd2 {[%emt 0:00:01]} Rb2+ {[%emt 0:00:04]} 26. Ke1 {[%emt 0:00:20]} g5 {[%emt 0:01:42]} 27. a3 {[%emt 0:00:09]} Ra2 {[%emt 0:02:08]} 28. Rc8+ {[%emt 0:00:29]} Kg7 {[%emt 0:00:01]} 29. Ra8 {[%emt 0:00:08]} Ra1+ {[%emt 0:02:41]} 30. Kd2 {[%emt 0:00:05]} Ra2+ {[%emt 0:00:05]} 31. Ke1 {[%emt 0:00:14]} Rxa3 {[%emt 0:01:11]} 32. Bc2 {[%emt 0:00:46]} Ra1+ {[%emt 0:00:02]} 33. Kd2 {[%emt 0:00:02]} Rf1 {[%emt 0:00:02]} 34. Bxa4 {[%emt 0:00:08]} Rxf2+ {[%emt 0:00:01]} 35. Ke1 {[%emt 0:00:05]} Rxg2 {[%emt 0:00:04]} 36. Be8 {[%emt 0:00:22]} f5 {[%emt 0:00:42]} 37. Bd7 {[%emt 0:00:34]} Rxh2 {[%emt 0:00:12]} 38. Bxe6 {[%emt 0:00:03]} f4 {[%emt 0:00:09]} 39. exf4 {[%emt 0:00:10]} gxf4 {[%emt 0:00:01]} 40. Bxd5 {[%emt 0:00:01]} Kf6 {[%emt 0:00:03]} 41. Bf3 {[%emt 0:00:23]} Ke5 {[%emt 0:00:23]} 42. Re8+ {[%emt 0:00:19]} Kf5 {[%emt 0:00:01]} 43. Kf1 {[%emt 0:00:12]} h6 {[%emt 0:00:22]} 44. Bg2 {[%emt 0:00:18]} Rh5 {[%emt 0:00:05]} 45. Kf2 {[%emt 0:00:23]} Rg5 {[%emt 0:00:07]} 46. Bh3+ {[%emt 0:00:13]} Kf6 {[%emt 0:00:08]} 47. Re4 {[%emt 0:00:05]} Ra5 {[%emt 0:00:16]} 48. Rxf4+ {[%emt 0:00:02]} Kg5 {[%emt 0:00:05]} 49. Rg4+ {[%emt 0:00:09]} Kf6 {[%emt 0:00:01]} 50. Bg2 {[%emt 0:00:18]} Rg5 {[%emt 0:00:06]} 51. Rh4 {[%emt 0:00:06]} Rf5+ {[%emt 0:00:08]} 52. Bf3 {[%emt 0:00:05]} Kg5 {[%emt 0:00:10]} 53. Rh5+ {[%emt 0:00:11]} Kg6 {[%emt 0:00:04]} 54. Rh1 {[%emt 0:00:04]} Rc5 {[%emt 0:00:14]} 55. Kg3 {[%emt 0:00:33]} Ra5 {[%emt 0:00:08]} 56. Rb1 {[%emt 0:00:27]} Kg5 {[%emt 0:00:14]} 57. Rb8 {[%emt 0:00:13]} Kg6 {[%emt 0:00:28]} 58. Rd8 {[%emt 0:00:14]} Rc5 {[%emt 0:00:08]} 59. Be4+ {[%emt 0:00:15]} Kf6 {[%emt 0:00:08]} 60. Kf4 {[%emt 0:00:02]} h5 {[%emt 0:00:12]} 61. Rd6+ {[%emt 0:00:07]} Ke7 {[%emt 0:00:05]} 62. Rh6 {[%emt 0:00:02]} Ra5 {[%emt 0:00:10]} 63. Bf5 {[%emt 0:00:08]} Ra4+ {[%emt 0:00:03]} 64. Kg5 {[%emt 0:00:02]} h4 {[%emt 0:00:09]} 65. Re6+ {[%emt 0:00:11]} Kd8 {[%emt 0:00:03]} 66. Rc6 {[%emt 0:00:26]} Ke7 {[%emt 0:00:16]} 67. Rh6 {[%emt 0:00:18]} Rb4 {[%emt 0:00:07]} 68. Bg4 {[%emt 0:00:13]} Rd4 {[%emt 0:00:08]} 69. Kf5 {[%emt 0:00:12]} Rd5+ {[%emt 0:00:15]} 70. Ke4 {[%emt 0:00:06]} Ra5 {[%emt 0:00:03]} 71. Bf5 {[%emt 0:00:14]} Rb5 {[%emt 0:00:15]} 72. Kf4 {[%emt 0:00:11]} Ra5 {[%emt 0:00:19]} 73. Re6+ {[%emt 0:00:11]} Kd8 {[%emt 0:00:04]} 74. Rc6 {[%emt 0:00:05]} Ke7 {[%emt 0:00:02]} 75. Kg5 {[%emt 0:00:09]} h3 {[%emt 0:00:10]} 76. Rh6 {[%emt 0:00:07]} Ra1 {[%emt 0:00:33]} 77. Rxh3 {[%emt 0:00:18]} Kd6 {[%emt 0:00:07]} 78. Kf6 {[%emt 0:00:08]} Rd1 {[%emt 0:00:10]} 79. Rh8 {[%emt 0:00:08]} Rd4 {[%emt 0:00:07]} 80. Ra8 {[%emt 0:00:13]} Kd5 {[%emt 0:00:22]} 81. Rc8 {[%emt 0:00:15]} Kd6 {[%emt 0:00:04]} 82. Rd8+ {[%emt 0:00:09]} Kc5 {[%emt 0:00:01]} 83. Re8 {[%emt 0:00:07]} Kd6 {[%emt 0:00:05]} 84. Be4 {[%emt 0:00:05]} Kd7 {[%emt 0:00:24]} 85. Re7+ {[%emt 0:00:17]} Kd6 {[%emt 0:00:02]} 86. Re5 {[%emt 0:00:12]} Kd7 {[%emt 0:00:16]} 87. Kf5 {[%emt 0:00:01]} Rd1 {[%emt 0:00:06]} 88. Ra5 {[%emt 0:00:06]} Kd6 {[%emt 0:00:22]} 89. Ra6+ {[%emt 0:00:08]} Kd7 {[%emt 0:00:03]} 90. Ke5 {[%emt 0:00:02]} Rc1 {[%emt 0:00:02]} (90... Ke7 $11) 91. Rh6 {[%emt 0:00:15]} ({White should try} 91. Bf5+ $1 $14 Kc7 92. Be4) 91... Re1 $11 {[%emt 0:00:23]} 92. Rh7+ {[%emt 0:00:02]} Ke8 {[%emt 0:00:01]} 93. Kd5 {[%emt 0:00:20]} Kf8 {[%emt 0:00:01]} 94. Ra7 {[%emt 0:00:09]} Re2 {[%emt 0:00:02]} 95. Bf5 {[%emt 0:00:14]} Re7 {[%emt 0:00:02]} 96. Ra6 {[%emt 0:00:05]} Kf7 {[%emt 0:00:28]} 97. Be6+ {[%emt 0:00:06]} Kf6 {[%emt 0:00:04]} 98. Rb6 {[%emt 0:00:16]} Ra7 {[%emt 0:00:13]} 99. Kd6 {[%emt 0:00:06]} Ra4 {[%emt 0:00:09]} 100. Rc6 {[%emt 0:00:20]} Rb4 {[%emt 0:00:14]} 101. Ra6 {[%emt 0:00:02]} Rh4 {[%emt 0:00:16]} 102. Ra8 {[%emt 0:00:16]} Rd4+ {[%emt 0:00:01]} 103. Bd5 {[%emt 0:00:02]} Rf4 {[%emt 0:00:01]} 104. Rg8 {[%emt 0:00:04]} Rf5 {[%emt 0:00:15]} 105. Be6 {[%emt 0:00:08]} Rf4 {[%emt 0:00:04]} 106. Kd5 {[%emt 0:00:13]} Ra4 {[%emt 0:00:24]} 107. Rf8+ {[%emt 0:00:03]} Kg7 {[%emt 0:00:01]} 108. Rf1 {[%emt 0:00:10]} Ra5+ {[%emt 0:00:05]} 109. Kd6 {[%emt 0:00:01]} Kg6 {[%emt 0:00:15]} 110. Bd5 {[%emt 0:00:26]} Rb5 {[%emt 0:00:11]} 111. Ke5 {[%emt 0:00:05]} Ra5 {[%emt 0:00:08]} 112. Rg1+ {[%emt 0:00:12]} Kh5 {[%emt 0:00:02]} 113. Ke4 {[%emt 0:00:20]} Kh6 {[%emt 0:00:01]} 114. Rd1 {[%emt 0:00:12]} Kg5 {[%emt 0:00:07]} 115. Ke5 {[%emt 0:00:01]} Rb5 {[%emt 0:00:04]} 116. Ra1 {[%emt 0:00:05]} Kg4 {[%emt 0:00:10]} 117. Ra8 {[%emt 0:00:38]} Kg5 {[%emt 0:00:10]} 118. Rf8 {[%emt 0:00:11]} Ra5 {[%emt 0:00:13]} 119. Rb8 {[%emt 0:00:09]} Kg4 {[%emt 0:00:10]} 120. Rg8+ {[%emt 0:00:12]} Kh5 {[%emt 0:00:02]} 121. Rg2 {[%emt 0:00:10]} Rb5 {[%emt 0:00:04]} 122. Ke6 {[%emt 0:00:07]} Kh4 {[%emt 0:00:01]} 123. Rg1 {[%emt 0:00:10]} Ra5 {[%emt 0:00:06]} 124. Rd1 {[%emt 0:00:06]} Kg3 {[%emt 0:00:02]} 125. Rd4 {[%emt 0:00:09]} Ra1 {[%emt 0:00:06]} 126. Kf5 {[%emt 0:00:03]} Rf1+ {[%emt 0:00:02]} 127. Kg5 {[%emt 0:00:01]} 1/2-1/2

[Event "Superbet Rapid Poland 2022"]
[Site "Warsaw"]
[Date "2022.05.21"]
[Round "7.4"]
[White "Caruana, Fabiano"]
[Black "So, Wesley"]
[Result "1/2-1/2"]
[ECO "C65"]
[WhiteElo "2786"]
[BlackElo "2766"]
[Annotator "TA"]
[PlyCount "183"]
[EventDate "2022.05.19"]
[EventType "tourn"]
[EventCountry "POL"]
[SourceTitle "playchess.com"]
[Source "ChessBase"]
[SourceQuality "1"]
[TimeControl "1500+10"]

{[%evp 20,183,19,0,0,0,14,-2,0,4,9,-40,-29,-41,-47,-54,-57,-93,-37,-29,-27,-60,-67,-76,-65,-95,-56,-131,-119,-104,-90,-75,-72,-72,-64,-106,-83,-82,-72,-84,-57,-54,0,-45,21,-35,22,0,4,0,0,0,0,0,0,0,0,0,0,0,0,-31,-31,-31,-30,-39,-22,-38,-14,-39,0,-36,0,-88,-90,-124,-69,-77,-69,-69,-70,-72,-58,-75,-68,-67,-67,-67,-49,-49,-27,-28,0,-19,-10,-28,-29,-31,-29,-29,-8,-8,0,0,0,0,0,0,0,0,0,-68,-68,-70,-58,-58,-58,-58,-58,-84,-84,-87,-87,-87,-51,-51,-51,-129,-129,-129,-129,-129,-129,-129,-129,-129,-129,-129,0,-129,-129,-129,-129,-129,-129,-129,-129,-129,0,-129,-129,-129,-129,-129,-35,-35,-8,-35,-8,-8,-8,-8,-8,-8,-8,-8]} 1. e4 {[%emt 0:00:03]} e5 {[%emt 0:00:07]} 2. Nf3 {[%emt 0:00:02]} Nc6 {[%emt 0:00:01]} 3. Bb5 {[%emt 0:00:02]} Nf6 {[%emt 0:00:03]} 4. d3 {[%emt 0:00:02]} Bc5 {[%emt 0:00:02]} 5. c3 {[%emt 0:00:03]} O-O {[%emt 0:00:16]} 6. O-O {[%emt 0:00:02]} d6 {[%emt 0:00:01]} 7. h3 {[%emt 0:00:16]} Ne7 {[%emt 0:00:04]} 8. Ba4 {[%emt 0:00:07]} Ng6 {[%emt 0:00:14]} 9. Re1 {[%emt 0:00:08]} Bb6 {[%emt 0:00:12]} 10. Nbd2 {[%emt 0:00:29]} c6 {[%emt 0:00:02]} 11. Bc2 {[%emt 0:00:27]} Re8 {[%emt 0:00:19]} 12. d4 {[%emt 0:00:13]} Bc7 {[%emt 0:02:04]} 13. a4 {[%emt 0:01:05]} h6 {[%emt 0:01:04]} 14. Nf1 {[%emt 0:00:30]} d5 {[%emt 0:00:21]} 15. exd5 {[%emt 0:01:08]} (15. Nxe5 $11 Nxe5 16. dxe5 Bxe5 17. f4) 15... e4 $15 {[%emt 0:00:04]} 16. d6 {[%emt 0:01:02]} Qxd6 {[%emt 0:00:18]} 17. N3d2 {[%emt 0:00:04]} Bf5 {[%emt 0:00:08]} 18. g4 {[%emt 0:08:23]} Bd7 {[%emt 0:08:09]} (18... Nf4 $6 19. gxf5 Nxh3+ 20. Kg2 Nf4+ 21. Kh1 $11) ({Black should try} 18... e3 $17 19. Rxe3 Bxc2 20. Qxc2 Nh4) 19. Nxe4 $15 {[%emt 0:00:26]} Nxe4 {[%emt 0:00:02]} 20. Bxe4 {[%emt 0:00:07]} Nh4 $1 {[%emt 0:00:28]} 21. Bd2 {[%emt 0:03:25]} Be6 {[%emt 0:02:03]} 22. Re3 {[%emt 0:02:59]} Qd7 {[%emt 0:05:32]} 23. Bh1 {[%emt 0:03:25]} (23. a5 $15) 23... Bd5 {[%emt 0:00:45]} 24. f3 {[%emt 0:00:03]} Ng6 {[%emt 0:00:38]} 25. Bg2 {[%emt 0:00:52]} Nf4 {[%emt 0:01:25]} 26. Qc2 {[%emt 0:00:19] [#]} h5 $1 {[%emt 0:00:49]} 27. Qf5 {[%emt 0:01:52]} Be6 {[%emt 0:01:03]} 28. Qg5 {[%emt 0:00:39]} f6 {[%emt 0:00:59]} 29. Qh4 {[%emt 0:00:01]} g5 {[%emt 0:00:16]} 30. Qf2 {[%emt 0:00:02]} Bc4 {[%emt 0:00:23]} ({Don't play} 30... hxg4 31. fxg4 f5 32. gxf5 Bxf5 33. Rxe8+ Rxe8 34. Bxf4 Bxf4 35. Re1 $11) (30... f5 $15) 31. Rae1 {[%emt 0:00:52]} (31. Ng3 $5 {[%cal Re3e8]}) 31... Kf7 {[%emt 0:00:20]} (31... Rxe3 $15 32. Rxe3 Rf8) 32. Bc1 {[%emt 0:00:20]} ({White should play} 32. Rxe8 $1 $11 Rxe8 33. Bxf4 Bxf4 34. gxh5) 32... Bd5 {[%emt 0:00:48]} (32... Rxe3 $15 33. Nxe3 Be6) 33. Qc2 {[%emt 0:00:25]} Kf8 {[%emt 0:00:32]} 34. Rxe8+ {[%emt 0:00:16]} Rxe8 {[%emt 0:00:01]} 35. Rxe8+ {[%emt 0:00:02]} Qxe8 {[%emt 0:00:07]} 36. Ne3 {[%emt 0:00:06]} hxg4 {[%emt 0:00:05]} 37. hxg4 {[%emt 0:00:04]} Bf7 {[%emt 0:00:12]} (37... Qe6 {looks sharper.} 38. Kf2 Nxg2 39. Kxg2 Qd6) 38. Bf1 {[%emt 0:00:07]} Bg6 {[%emt 0:00:04]} 39. Qf2 {[%emt 0:00:31]} Qe6 {[%emt 0:00:16]} 40. Nf5 {[%emt 0:00:27]} Bxf5 {[%emt 0:00:10]} 41. gxf5 Qxf5 {[%emt 0:00:01]} 42. Bxf4 {[%emt 0:00:06]} Qxf4 {[%emt 0:00:19]} 43. Qe2 {[%emt 0:00:13]} a5 {[%emt 0:00:09]} 44. Bh3 {[%emt 0:00:16]} Bd6 {[%emt 0:00:15]} 45. Kf1 {[%emt 0:00:20]} Kg7 {[%emt 0:00:10]} 46. Kg1 {[%emt 0:00:11]} (46. Bc8 $11 {keeps the balance.}) 46... c5 $17 {[%emt 0:00:31]} 47. dxc5 {[%emt 0:00:14] [#]} Bxc5+ {[%emt 0:00:01]} (47... Qg3+ $1 $17 48. Bg2 Bxc5+ 49. Kf1 Qf4) 48. Kg2 $15 {[%emt 0:00:01]} Bd6 {[%emt 0:00:01]} 49. Kf1 {[%emt 0:00:12]} Qxa4 {[%emt 0:00:02]} 50. Qd2 {[%emt 0:00:09]} Qb5+ {[%emt 0:00:32]} 51. Kg2 {[%emt 0:00:02]} Qe5 {[%emt 0:00:01]} 52. Kf1 {[%emt 0:00:08]} b6 {[%emt 0:00:16]} 53. Bg4 {[%emt 0:00:06]} Kh6 {[%emt 0:00:10]} 54. Qd3 {[%emt 0:00:10]} Qh2 {[%emt 0:00:07]} 55. Qd4 {[%emt 0:00:09]} Kg6 {[%emt 0:00:49]} (55... Qf4 $5 {[%cal Rf4c1]}) 56. Qe4+ {[%emt 0:00:05]} Kg7 {[%emt 0:00:02]} 57. Qb7+ {[%emt 0:00:07]} Bc7 {[%emt 0:00:01]} 58. Qe4 {[%emt 0:00:10]} Qd6 {[%emt 0:00:03]} (58... Qxb2 {is a self mate.} 59. Qe7+ Kh6 60. Qxf6+ Kh7 61. Qf7+ Kh6 62. Qf8+ Kg6 63. Bf5+ Kh5 64. Qh8#) 59. Ke2 {[%emt 0:00:07]} ({Much weaker is} 59. Bh5 Qd1+ 60. Kg2 Qd2+ 61. Kf1 Qd1+ 62. Kf2 Qd2+ 63. Kf1 Qc1+ 64. Qe1 Bf4 $17) 59... Qc5 {[%emt 0:00:14]} 60. Kd1 {[%emt 0:00:26]} Bf4 {[%emt 0:00:20]} 61. Kc2 {[%emt 0:00:01]} Qd6 {[%emt 0:00:23]} 62. Qb7+ {[%emt 0:00:18]} Kf8 {[%emt 0:00:11]} 63. Qc8+ {[%emt 0:00:13]} Ke7 {[%emt 0:00:02]} 64. Qb7+ {[%emt 0:00:01]} Qc7 {[%emt 0:00:19]} 65. Qxc7+ {[%emt 0:00:02]} (65. Qd5 $11) 65... Bxc7 $15 {[%emt 0:00:01]} 66. Kd3 {[%emt 0:00:06]} Kd6 {[%emt 0:00:01]} 67. Ke4 {[%emt 0:00:16]} Kc5 {[%emt 0:00:12]} 68. Be6 {[%emt 0:00:15]} Be5 {[%emt 0:00:04]} 69. Kd3 {[%emt 0:00:03]} Kd6 {[%emt 0:00:10]} 70. Bf7 {[%emt 0:00:11]} f5 {[%emt 0:00:04]} 71. Be8 {[%emt 0:00:11]} g4 {[%emt 0:00:09]} 72. fxg4 {[%emt 0:00:06]} fxg4 {[%emt 0:00:01]} 73. Bh5 {[%emt 0:00:12]} (73. Ke4 $15) 73... g3 $17 {[%emt 0:00:01]} 74. Bf3 {[%emt 0:00:01]} Kc5 {[%emt 0:00:15]} 75. Bg2 {[%emt 0:00:20]} a4 {[%emt 0:00:31]} 76. Bf3 {[%emt 0:00:08]} Bg7 {[%emt 0:00:08]} 77. Bg2 {[%emt 0:00:02]} Bf8 {[%emt 0:00:10]} 78. Kc2 {[%emt 0:00:09]} Bg7 {[%emt 0:00:01]} 79. Kd3 {[%emt 0:00:01]} b5 {[%emt 0:00:21]} 80. Kc2 {[%emt 0:00:01]} b4 {[%emt 0:00:13]} 81. cxb4+ {[%emt 0:00:05]} Kxb4 {[%emt 0:00:01]} 82. Bf3 {[%emt 0:00:25]} Bf6 {[%emt 0:00:06]} 83. Bg2 {[%emt 0:00:01]} Bg7 {[%emt 0:00:07]} 84. Bf3 $1 {[%emt 0:00:01]} Kc4 {[%emt 0:00:01]} 85. Bg2 {[%emt 0:00:02]} Kd4 {[%emt 0:00:21]} 86. Kd2 {[%emt 0:00:02]} Bh6+ {[%emt 0:00:12]} (86... Bh8 $17 87. Bh1 Kc5) 87. Ke2 $15 {[%emt 0:00:22]} Be3 {[%emt 0:00:27]} 88. Kf3 {[%emt 0:00:32]} Bf2 {[%emt 0:00:01]} 89. Bh3 {[%emt 0:00:10]} Kc4 {[%emt 0:00:01]} 90. Bd7 {[%emt 0:00:02]} Kb3 {[%emt 0:00:01]} 91. Kg2 {[%emt 0:00:05]} Kxb2 {[%emt 0:00:02]} 92. Bxa4 {[%emt 0:00:01]} 1/2-1/2

[Event "Superbet Rapid Poland 2022"]
[Site "Warsaw"]
[Date "2022.05.21"]
[Round "7.5"]
[White "Rapport, Richard"]
[Black "Wojtaszek, Radoslaw"]
[Result "1-0"]
[ECO "B50"]
[WhiteElo "2776"]
[BlackElo "2696"]
[Annotator "TA"]
[PlyCount "71"]
[EventDate "2022.05.19"]
[EventType "tourn"]
[EventCountry "POL"]
[SourceTitle "playchess.com"]
[Source "ChessBase"]
[SourceQuality "1"]
[TimeControl "1500+10"]

{[%evp 11,71,-7,4,-19,-12,-20,-16,-15,14,14,6,1,0,2,0,0,0,-5,0,0,8,0,0,0,0,0,0,0,0,-21,0,0,11,26,19,27,15,8,47,49,45,48,49,41,45,34,125,90,130,119,116,124,116,122,343,339,335,315,332,317,313,306]} 1. e4 {[%emt 0:00:05]} c5 {[%emt 0:00:01]} 2. Nf3 {[%emt 0:00:05]} d6 {[%emt 0:00:03]} 3. Bd3 {[%emt 0:00:07]} Nf6 {[%emt 0:00:11]} 4. O-O {[%emt 0:00:04]} g6 {[%emt 0:00:08]} 5. c3 {[%emt 0:00:04]} Bg7 {[%emt 0:00:32]} 6. Bb5+ {[%emt 0:00:16]} Bd7 {[%emt 0:00:31]} 7. Qe2 $5 {[%emt 0:00:39][%mdl 4] Exploring less charted territory. B50: Sicilian: 2...d6, Miscellaneous.} Bxb5 {[%emt 0:02:17]} 8. Qxb5+ {[%emt 0:00:02]} Qd7 {[%emt 0:00:02]} 9. Qe2 {[%emt 0:00:05] [#] The position is equal.} Qc6 $146 {[%emt 0:01:18]} ({Predecessor:} 9... Nc6 10. d4 cxd4 11. cxd4 d5 12. e5 Ne4 13. Nbd2 Nxd2 14. Bxd2 O-O 15. Rac1 Rfc8 16. Rc3 Nd8 17. Rfc1 Rxc3 18. Rxc3 a6 19. Bg5 f6 20. exf6 {½-½ (19) Stripunsky,A (2549)-Kovalyov,A (2617) Mashantucket 2014}) 10. Re1 {[%emt 0:00:28]} Qa6 {[%emt 0:00:02]} 11. Qd1 {[%emt 0:01:09]} O-O {[%emt 0:01:42]} 12. d4 {[%emt 0:00:05]} e6 {[%emt 0:01:53]} 13. Bf4 {[%emt 0:00:47]} Nbd7 {[%emt 0:00:53]} 14. Nbd2 {[%emt 0:01:01]} Rfe8 {[%emt 0:01:22]} 15. h3 {[%emt 0:03:22]} Rac8 {[%emt 0:00:05]} 16. Be3 {[%emt 0:00:25]} cxd4 {[%emt 0:01:16]} 17. cxd4 {[%emt 0:00:06]} Nb6 {[%emt 0:02:21]} 18. b3 {[%emt 0:02:01]} Qd3 {[%emt 0:00:02]} 19. Bf4 {[%emt 0:00:30]} Bf8 {[%emt 0:01:38]} 20. a4 {[%emt 0:00:32]} Nbd7 {[%emt 0:00:58]} 21. Re3 {[%emt 0:02:36]} Qc2 {[%emt 0:00:02]} 22. Qxc2 {[%emt 0:00:12]} Rxc2 {[%emt 0:00:02]} 23. Nc4 {[%emt 0:00:04]} e5 $1 {[%emt 0:02:55]} ({Resist} 23... d5 24. Ne1 $16) 24. Bg5 {[%emt 0:00:17]} d5 {[%emt 0:00:43]} (24... Nh5 {seems wilder.} 25. dxe5 Nxe5 26. Nfxe5 dxe5 27. Rf3 f5) 25. exd5 {[%emt 0:04:47]} ({Don't play} 25. Ncxe5 dxe4 26. Nxd7 Nxd7 $11) 25... Nxd5 {[%emt 0:00:20]} 26. Nfxe5 {[%emt 0:00:02]} Nxe3 {[%emt 0:06:03]} 27. Nxe3 {[%emt 0:00:03]} Rxe5 {[%emt 0:00:41]} 28. dxe5 {[%emt 0:00:02]} Rc5 {[%emt 0:00:02]} ({Black should try} 28... Rb2 $14) 29. Bf4 {[%emt 0:01:00]} Bg7 {[%emt 0:00:54]} 30. Rd1 {[%emt 0:00:02]} Bxe5 {[%emt 0:00:14]} 31. Bh6 {[%emt 0:00:01]} Nf8 {[%emt 0:00:27] [#]} 32. Nc4 $1 {[%emt 0:00:16]} Ne6 $2 {[%emt 0:00:41] A mistake that costs the game.} (32... Bc7 $16) 33. Be3 $18 {[%emt 0:00:23] White has a decisive advantage.} Bd4 {[%emt 0:00:02]} 34. Rxd4 {[%emt 0:00:04]} ({Inferior is} 34. Bxd4 Rd5 $11) 34... Nxd4 {[%emt 0:00:01]} 35. Bxd4 {[%emt 0:00:02]} Rd5 {[%emt 0:00:21]} 36. Bxa7 {[%emt 0:00:02] Weighted Error Value: White=0.04 (flawless) /Black=0.18 (very precise)} 1-0